bitfinex/quotes_SOLUSD_20250102
["timestamp","ask_amount","ask_price","bid_price","bid_amount"]
[1735786932319,0.75157428,199.77,199.68,23.776884]
[1735786933520,6.217,199.76,199.68,23.776884]
[1735786935695,6.217,199.76,199.68,33.43913874]
[1735786936318,6.217,199.76,199.67,33.43913874]
[1735786937719,6.217,199.76,199.67,23.776884]
[1735786937937,0.75157428,199.75,199.64,0.7509736]
[1735786938103,0.75157428,199.75,199.62,9.66225474]
[1735786938811,1.5141,199.74,199.63,23.776884]
[1735786939019,0.75157428,199.73,199.63,23.776884]
[1735786939626,20.75157428,199.73,199.62,9.66225474]
[1735786939797,20.0,199.69,199.61,0.7511962]
[1735786940005,2.26567428,199.68,199.58,10.41351632]
[1735786940217,2.26567428,199.68,199.58,0.75126158]
[1735786940417,2.26567428,199.68,199.59,23.776884]
[1735786940622,2.26567428,199.68,199.58,0.75126158]
[1735786940923,2.26567428,199.68,199.53,12.5289]
[1735786940924,6.217,199.67,199.55,10.41362135]
[1735786941109,0.75157428,199.66,199.56,23.776884]
[1735786941306,0.75157428,199.66,199.55,0.75136661]
[1735786941504,20.0,199.64,199.54,9.66225474]
[1735786941707,0.75157428,199.63,199.53,9.66225474]
[1735786941905,1.5141,199.62,199.53,9.66225474]
[1735786942316,1.5141,199.62,199.52,9.66225474]
[1735786943023,0.75157428,199.61,199.52,9.66225474]
[1735786943205,6.2038,199.6,199.51,10.41370316]
[1735786943920,6.2038,199.6,199.52,23.776884]
[1735786944120,6.2038,199.6,199.51,10.41370316]
[1735786944322,6.2038,199.6,199.51,15.87231239]
[1735786944323,0.75157428,199.59,199.51,15.87231239]
[1735786944507,0.75157428,199.59,199.51,0.75144842]
[1735786944703,0.75157428,199.59,199.51,15.87231239]
[1735786944903,6.2038,199.6,199.54,23.776884]
[1735786945120,6.2038,199.6,199.54,24.52839905]
[1735786945322,1.5141,199.62,199.56,15.12086397]
[1735786945529,1.5141,199.62,199.57,24.52828122]
[1735786947319,1.5141,199.62,199.57,23.776884]
[1735786948131,1.5141,199.62,199.53,15.8722626]
[1735786948341,0.75157428,199.61,199.52,134.8]
[1735786948505,20.0,199.57,199.5,0.2]
[1735786948706,1.6018,199.55,199.5,0.2]
[1735786948921,0.75157428,199.54,199.5,0.2]
[1735786949223,1.6018,199.55,199.5,0.2]
[1735786949430,0.75157428,199.54,199.5,0.2]
[1735786950213,1.6018,199.55,199.5,0.2]
[1735786950719,0.75157428,199.54,199.5,0.2]
[1735786952149,1.6018,199.55,199.5,0.2]
[1735786953627,2.35337428,199.55,199.5,0.2]
[1735786954043,1.6018,199.55,199.5,0.2]
[1735786957216,6.2038,199.53,199.5,0.2]
[1735786957430,0.75157428,199.52,199.5,0.2]
[1735786957636,6.95537428,199.53,199.5,0.2]
[1735786960555,20.0,199.51,199.5,0.2]
[1735786960755,20.75157428,199.51,199.5,0.2]
[1735786961054,0.75157428,199.51,199.5,0.2]
[1735786961223,0.75157428,199.52,199.5,0.2]
[1735786963029,21.54,199.51,199.5,0.2]
[1735786963231,20.0,199.5,199.48,8.15750965]
[1735786963431,0.75157428,199.49,199.48,8.15750965]
[1735786965044,20.75157428,199.49,199.48,8.15750965]
[1735786965248,26.78067428,199.49,199.34,15.12086397]
[1735786965733,26.78067428,199.49,199.36,15.12086397]
[1735786967343,26.78067428,199.49,199.36,23.776884]
[1735786967727,26.78067428,199.49,199.33,23.776884]
[1735786967929,26.78067428,199.49,199.35,23.776884]
[1735786968946,26.78067428,199.49,199.32,2.29983501]
[1735786968947,20.0,199.45,199.32,15.12086397]
[1735786969121,20.75157428,199.44,199.3,55.12086397]
[1735786969328,20.0,199.43,199.3,55.12086397]
[1735786969526,0.75157428,199.42,199.3,55.12086397]
[1735786969946,6.0291,199.4,199.3,55.12086397]
[1735786970143,0.75157428,199.39,199.3,55.12086397]
[1735786970727,6.0291,199.4,199.33,23.776884]
[1735786970928,6.0291,199.4,199.33,38.89774797]
[1735786972043,0.75157428,199.39,199.3,40.0]
[1735786972437,0.75157428,199.39,199.31,38.89774797]
[1735786972743,0.75157428,199.39,199.31,15.12086397]
[1735786973148,6.0291,199.4,199.31,15.12086397]
[1735786973149,6.0291,199.4,199.32,39.65013761]
[1735786973323,6.0291,199.4,199.34,23.776884]
[1735786973529,6.0291,199.4,199.32,15.87325361]
[1735786974047,6.78067428,199.4,199.32,15.12086397]
[1735786976340,6.78067428,199.4,199.33,15.12086397]
[1735786978055,6.78067428,199.4,199.31,15.12086397]
[1735786978255,6.78067428,199.4,199.31,9.69672741]
[1735786979739,6.78067428,199.4,199.3,40.0]
[1735786981457,6.78067428,199.4,199.31,23.776884]
[1735786981650,6.78067428,199.4,199.32,9.69672741]
[1735786982040,6.0291,199.4,199.34,23.776884]
[1735786982668,1.54,199.41,199.34,23.776884]
[1735786982850,1.54,199.41,199.35,9.69672741]
[1735786983051,1.54,199.41,199.36,9.69672741]
[1735786983750,1.54,199.41,199.35,33.47361141]
[1735786983950,1.54,199.41,199.36,23.776884]
[1735786985051,1.54,199.41,199.35,38.92175804]
[1735786985255,1.54,199.41,199.36,23.776884]
[1735786985964,1.54,199.41,199.35,15.14487404]
[1735786986269,1.54,199.41,199.35,38.92175804]
[1735786986668,1.54,199.41,199.36,23.776884]
[1735786986880,1.54,199.41,199.36,38.92175804]
[1735786987083,1.6198,199.46,199.4,23.776884]
[1735786987248,1.6198,199.46,199.4,38.92175804]
[1735786987973,6.6269,199.5,199.41,39.67381126]
[1735786988170,7.37847428,199.5,199.42,15.14487404]
[1735786988374,6.6269,199.5,199.42,15.14487404]
[1735786988670,6.6269,199.5,199.43,24.52884638]
[1735786989654,6.6269,199.5,199.43,23.776884]
[1735786989862,6.6269,199.5,199.42,23.776884]
[1735786990851,6.6269,199.5,199.42,38.92175804]
[1735786993771,0.75157428,199.49,199.37,15.14487404]
[1735786993973,20.0,199.47,199.36,15.14487404]
[1735786994177,0.75157428,199.46,199.36,15.14487404]
[1735786994679,0.75157428,199.46,199.37,23.776884]
[1735786996655,21.5469,199.45,199.34,15.14487404]
[1735786996856,6.448,199.43,199.33,15.14487404]
[1735786997057,0.75157428,199.42,199.32,15.14487404]
[1735786998572,20.0,199.4,199.3,55.14487404]
[1735786998771,0.75157428,199.39,199.3,55.14487404]
[1735786999387,0.75157428,199.39,199.31,23.776884]
[1735786999598,1.5469,199.38,199.3,40.0]
[1735786999880,0.75157428,199.37,199.3,40.0]
[1735787001160,1.5469,199.38,199.33,15.14487404]
[1735787001362,0.75157428,199.42,199.34,15.14487404]
[1735787001601,0.75157428,199.42,199.35,15.14487404]
[1735787002595,0.75157428,199.42,199.34,15.14487404]
[1735787003879,0.75157428,199.42,199.33,15.14487404]
[1735787006981,0.75157428,199.42,199.32,15.14487404]
[1735787007171,0.75157428,199.42,199.31,24.52919749]
[1735787007172,0.75157428,199.42,199.31,15.14487404]
[1735787007570,0.75157428,199.42,199.32,23.776884]
[1735787007871,20.0,199.4,199.31,15.14487404]
[1735787008089,0.75157428,199.39,199.3,40.0]
[1735787008799,1.555,199.38,199.3,40.0]
[1735787009012,0.75157428,199.37,199.3,40.0]
[1735787009812,6.2312,199.36,199.3,40.0]
[1735787010102,20.0,199.33,199.3,40.0]
[1735787010402,0.75157428,199.35,199.3,40.0]
[1735787011891,20.0,199.33,199.3,40.0]
[1735787012074,0.75157428,199.32,199.3,40.0]
[1735787013498,0.75157428,199.32,199.21,0.752724]
[1735787013499,31.563084,199.31,199.21,0.752724]
[1735787013698,20.0,199.26,199.1,15.14487404]
[1735787013908,0.75157428,199.25,199.11,15.14487404]
[1735787014101,0.75157428,199.25,199.12,15.14487404]
[1735787014298,0.75157428,199.25,199.13,23.776884]
[1735787014486,20.0,199.28,199.13,15.14487404]
[1735787014791,0.75157428,199.27,199.16,15.14487404]
[1735787014991,0.75157428,199.27,199.17,15.14487404]
[1735787015191,0.75157428,199.27,199.18,23.776884]
[1735787015609,0.75157428,199.27,199.18,38.92175804]
[1735787016089,0.75157428,199.3,199.2,38.92175804]
[1735787016278,20.0,199.28,199.18,15.14487404]
[1735787016479,0.75157428,199.27,199.18,15.14487404]
[1735787016686,0.75157428,199.27,199.19,23.776884]
[1735787019909,0.75157428,199.27,199.17,38.92175804]
[1735787021500,8.1623,199.36,199.25,15.14487404]
[1735787021797,8.1623,199.36,199.28,23.776884]
[1735787021985,0.75157428,199.35,199.26,15.14487404]
[1735787022181,0.75157428,199.35,199.22,8.1623]
[1735787022399,0.75157428,199.35,199.2,33.48526223]
[1735787022577,20.0,199.33,199.2,33.48526223]
[1735787022778,20.0,199.33,199.19,23.776884]
[1735787022779,0.75157428,199.32,199.19,23.776884]
[1735787022983,20.75157428,199.32,199.19,23.776884]
[1735787023381,20.0,199.31,199.18,23.776884]
[1735787023583,0.75157428,199.3,199.18,23.776884]
[1735787023784,0.75157428,199.3,199.17,22.25997823]
[1735787024195,0.75157428,199.3,199.18,15.17212713]
[1735787024386,0.75157428,199.3,199.21,15.17212713]
[1735787024591,0.75157428,199.31,199.22,23.776884]
[1735787025379,0.75157428,199.32,199.24,23.776884]
[1735787025579,0.75157428,199.35,199.25,15.17212713]
[1735787025779,8.1623,199.36,199.27,15.17212713]
[1735787026007,8.1623,199.36,199.28,23.776884]
[1735787026704,0.75157428,199.35,199.28,23.776884]
[1735787026899,8.1623,199.36,199.28,23.776884]
[1735787027104,8.1623,199.36,199.28,15.17212713]
[1735787028608,8.91387428,199.41,199.32,15.17212713]
[1735787028901,7.85440961,199.46,199.4,15.17212713]
[1735787029113,7.85440961,199.46,199.45,15.17212713]
[1735787029280,69.9567054,199.49,199.45,15.17212713]
[1735787030002,0.75157428,199.51,199.45,15.17212713]
[1735787030181,6.6386,199.53,199.45,15.17212713]
[1735787030182,0.75157428,199.52,199.45,15.17212713]
[1735787033007,0.75157428,199.52,199.4,15.17212713]
[1735787033209,0.75157428,199.52,199.42,15.17212713]
[1735787033412,0.75157428,199.52,199.44,15.17212713]
[1735787033711,0.75157428,199.52,199.38,12.5388]
[1735787033886,0.75157428,199.52,199.42,15.17212713]
[1735787034085,0.75157428,199.52,199.43,15.17212713]
[1735787034308,0.75157428,199.52,199.44,15.17212713]
[1735787034508,0.75157428,199.52,199.45,15.17212713]
[1735787034708,0.75157428,199.52,199.44,15.17212713]
[1735787035300,0.75157428,199.52,199.45,15.17212713]
[1735787035498,0.75157428,199.59,199.51,15.17212713]
[1735787035701,7.85440961,199.65,199.59,28.776884]
[1735787035901,7.85440961,199.65,199.64,15.17212713]
[1735787036098,7.85440961,199.65,199.61,0.75114718]
[1735787036431,7.85440961,199.65,199.62,15.17212713]
[1735787036615,0.75157428,199.68,199.63,23.776884]
[1735787036809,0.75157428,199.72,199.63,23.776884]
[1735787037005,0.75157428,199.72,199.63,15.17212713]
[1735787037405,20.0,199.73,199.64,15.17212713]
[1735787037602,0.75157428,199.72,199.64,15.17212713]
[1735787037993,0.75157428,199.72,199.65,15.17212713]
[1735787038193,0.75157428,199.72,199.65,24.16178761]
[1735787038413,0.75157428,199.75,199.65,24.16178761]
[1735787038793,20.0,199.73,199.65,24.16178761]
[1735787039015,0.75157428,199.72,199.65,24.16178761]
[1735787039415,0.75157428,199.75,199.65,24.16178761]
[1735787040417,20.0,199.73,199.64,24.16178761]
[1735787040599,20.75157428,199.72,199.6,24.16178761]
[1735787041492,20.75157428,199.72,199.62,24.16178761]
[1735787041713,0.75157428,199.72,199.66,24.16178761]
[1735787042099,0.75157428,199.75,199.66,24.16178761]
[1735787042999,0.75157428,199.75,199.64,24.16178761]
[1735787043500,20.0,199.73,199.63,24.16178761]
[1735787043698,0.75157428,199.72,199.63,24.16178761]
[1735787045929,0.75157428,199.72,199.6,20.0]
[1735787046136,20.0,199.7,199.58,24.16178761]
[1735787046342,0.75157428,199.69,199.56,24.16178761]
[1735787046616,20.0,199.65,199.53,24.16178761]
[1735787046923,20.0,199.61,199.52,24.16178761]
[1735787047118,0.75157428,199.6,199.52,24.16178761]
[1735787047311,0.75157428,199.6,199.53,24.16178761]
[1735787047512,0.75157428,199.6,199.52,24.16178761]
[1735787047823,20.0,199.59,199.49,24.16178761]
[1735787048015,0.75157428,199.58,199.49,24.16178761]
[1735787048727,0.75157428,199.58,199.48,24.16178761]
[1735787049698,0.75157428,199.58,199.43,23.776884]
[1735787049904,0.75157428,199.61,199.52,24.16178761]
[1735787050112,20.0,199.6,199.51,24.16178761]
[1735787050312,0.75157428,199.59,199.51,24.16178761]
[1735787050627,20.0,199.58,199.48,24.16178761]
[1735787050917,0.75157428,199.57,199.48,24.16178761]
[1735787051223,0.75157428,199.57,199.49,24.16178761]
[1735787051404,0.75157428,199.57,199.48,24.16178761]
[1735787051604,0.75157428,199.57,199.47,24.16178761]
[1735787052909,0.75157428,199.57,199.5,24.16178761]
[1735787053109,0.75157428,199.59,199.51,24.16178761]
[1735787053506,20.0,199.57,199.47,24.16178761]
[1735787053710,0.75157428,199.56,199.46,24.16178761]
[1735787054427,20.0,199.53,199.4,24.16178761]
[1735787054616,20.0,199.48,199.4,24.16178761]
[1735787054932,0.75157428,199.47,199.39,24.16178761]
[1735787055499,0.75157428,199.47,199.36,0.75215951]
[1735787055721,20.0,199.46,199.36,24.16178761]
[1735787055901,0.75157428,199.45,199.36,24.16178761]
[1735787056108,0.75157428,199.45,199.33,20.0]
[1735787056109,0.75157428,199.45,199.37,24.16178761]
[1735787056305,0.75157428,199.47,199.37,24.16178761]
[1735787056717,0.75157428,199.47,199.36,24.16178761]
[1735787057119,5.75157428,199.47,199.36,24.16178761]
[1735787057329,20.0,199.44,199.36,24.16178761]
[1735787057635,0.75157428,199.43,199.36,24.16178761]
[1735787057925,0.75157428,199.49,199.39,24.16178761]
[1735787058842,0.75157428,199.49,199.41,24.16178761]
[1735787059006,0.75157428,199.5,199.42,24.16178761]
[1735787059204,0.75157428,199.5,199.44,24.16178761]
[1735787059521,0.75157428,199.5,199.45,24.16178761]
[1735787059914,0.75157428,199.5,199.35,134.8]
[1735787059915,0.75157428,199.5,199.43,24.16178761]
[1735787060115,0.75157428,199.5,199.42,24.16178761]
[1735787060317,0.75157428,199.5,199.43,24.16178761]
[1735787062139,0.75157428,199.5,199.42,24.16178761]
[1735787062519,0.75157428,199.5,199.44,24.16178761]
[1735787062734,0.75157428,199.54,199.44,24.16178761]
[1735787063843,0.75157428,199.54,199.45,24.16178761]
[1735787064054,0.75157428,199.55,199.46,24.16178761]
[1735787067549,0.75157428,199.55,199.45,24.16178761]
[1735787069248,20.0,199.53,199.42,24.16178761]
[1735787069445,0.75157428,199.52,199.41,24.16178761]
[1735787069839,20.75157428,199.52,199.41,24.16178761]
[1735787070750,20.75157428,199.52,199.4,24.16178761]
[1735787070942,5.0,199.5,199.33,0.75210923]
[1735787071151,6.0106,199.47,199.35,24.16178761]
[1735787071438,20.0,199.44,199.33,24.16178761]
[1735787071657,0.75157428,199.43,199.33,24.16178761]
[1735787072157,0.75157428,199.43,199.35,24.16178761]
[1735787072350,0.75157428,199.43,199.35,15.14511635]
[1735787072551,0.75157428,199.43,199.34,15.14511635]
[1735787074337,0.75157428,199.43,199.34,24.23442835]
[1735787080065,0.75157428,199.43,199.35,24.23442835]
[1735787080268,0.75157428,199.43,199.34,24.23442835]
[1735787080768,0.75157428,199.43,199.36,24.23442835]
[1735787082669,0.75157428,199.46,199.39,24.23442835]
[1735787082965,6.0106,199.47,199.37,0.75225134]
[1735787082966,6.0106,199.47,199.42,24.23442835]
[1735787084156,2.30147428,199.49,199.42,24.23442835]
[1735787084357,2.30147428,199.49,199.41,24.23442835]
[1735787086065,2.30147428,199.49,199.4,24.23442835]
[1735787086370,2.30147428,199.49,199.39,24.23442835]
[1735787086753,20.0,199.48,199.37,24.23442835]
[1735787086945,0.75157428,199.47,199.37,24.23442835]
[1735787087161,0.75157428,199.47,199.38,24.23442835]
[1735787087371,0.75157428,199.47,199.37,24.23442835]
[1735787088853,0.75157428,199.47,199.36,24.23442835]
[1735787090450,0.75157428,199.47,199.36,48.01131235]
[1735787090673,0.75157428,199.47,199.37,24.23442835]
[1735787092968,0.75157428,199.47,199.38,24.23442835]
[1735787093174,0.75157428,199.47,199.37,24.23442835]
[1735787094175,0.75157428,199.47,199.36,24.23442835]
[1735787094367,20.75157428,199.47,199.35,24.23442835]
[1735787094575,20.75157428,199.47,199.34,24.23442835]
[1735787095851,3.7601,199.46,199.33,24.23442835]
[1735787096071,20.75157428,199.45,199.33,24.23442835]
[1735787096273,20.75157428,199.45,199.33,15.14912365]
[1735787097272,20.0,199.44,199.33,15.14912365]
[1735787097586,0.75157428,199.43,199.33,15.14912365]
[1735787098461,20.75157428,199.44,199.33,15.14912365]
[1735787099167,6.4261,199.43,199.33,15.14912365]
[1735787099355,20.0,199.4,199.32,15.14912365]
[1735787099681,0.75157428,199.39,199.31,15.14912365]
[1735787100351,0.75157428,199.39,199.32,15.14912365]
[1735787102758,20.0,199.38,199.27,15.14912365]
[1735787102963,0.75157428,199.37,199.26,15.14912365]
[1735787103163,0.75157428,199.37,199.27,15.14912365]
[1735787103364,0.75157428,199.37,199.31,15.14912365]
[1735787103570,0.75157428,199.39,199.31,15.14912365]
[1735787104481,20.75157428,199.39,199.31,15.14912365]
[1735787104984,0.75157428,199.39,199.31,15.14912365]
[1735787106378,1.5917,199.4,199.33,15.14912365]
[1735787106576,1.5917,199.4,199.34,15.14912365]
[1735787106780,6.4261,199.43,199.36,15.14912365]
[1735787107164,0.75157428,199.42,199.36,15.14912365]
[1735787107486,6.4261,199.43,199.36,15.14912365]
[1735787109197,6.4261,199.43,199.35,15.14912365]
[1735787109376,0.75157428,199.42,199.35,15.14912365]
[1735787109568,6.4261,199.43,199.35,15.14912365]
[1735787110494,0.75157428,199.42,199.35,15.14912365]
[1735787110690,6.4261,199.43,199.35,15.14912365]
[1735787111502,6.4261,199.43,199.34,15.14912365]
[1735787111788,6.4261,199.43,199.35,23.776884]
[1735787112284,6.4261,199.43,199.34,15.14912365]
[1735787112502,0.75157428,199.42,199.33,15.14912365]
[1735787116492,0.75157428,199.42,199.32,15.14912365]
[1735787116878,0.75157428,199.42,199.33,38.92600765]
[1735787117069,0.75157428,199.42,199.34,15.14912365]
[1735787117886,6.4261,199.43,199.36,15.14912365]
[1735787118094,6.4261,199.43,199.37,15.14912365]
[1735787118970,6.4261,199.43,199.36,15.14912365]
[1735787119372,6.4261,199.43,199.37,15.14912365]
[1735787120776,20.0,199.45,199.37,15.14912365]
[1735787120986,0.75157428,199.44,199.37,15.14912365]
[1735787121871,0.75157428,199.44,199.36,15.14912365]
[1735787123091,0.75157428,199.44,199.35,15.14912365]
[1735787123297,0.75157428,199.44,199.33,23.776884]
[1735787124893,20.75157428,199.44,199.33,23.776884]
[1735787126590,20.75157428,199.44,199.32,15.14912365]
[1735787126796,20.75157428,199.44,199.31,21.76429721]
[1735787127294,20.75157428,199.44,199.32,23.776884]
[1735787127497,20.0,199.43,199.32,23.776884]
[1735787127690,0.75157428,199.42,199.32,23.776884]
[1735787127989,20.0,199.37,199.24,15.14912365]
[1735787128193,20.0,199.31,199.21,15.14912365]
[1735787128391,0.75157428,199.3,199.19,0.75282268]
[1735787128577,6.4194,199.34,199.27,9.70663479]
[1735787130289,6.4194,199.34,199.27,15.15762326]
[1735787132797,1.5472,199.35,199.28,38.93450726]
[1735787133001,7.17097428,199.39,199.3,15.15762326]
[1735787133496,7.17097428,199.39,199.31,23.776884]
[1735787133678,7.17097428,199.39,199.31,15.15762326]
[1735787133880,6.4194,199.39,199.32,15.15762326]
[1735787134077,6.4194,199.39,199.33,15.15762326]
[1735787134274,0.75157428,199.38,199.29,15.15762326]
[1735787134692,0.75157428,199.38,199.28,15.15762326]
[1735787135785,0.75157428,199.38,199.27,15.15762326]
[1735787135987,0.75157428,199.38,199.25,15.15762326]
[1735787136177,20.0,199.36,199.25,15.15762326]
[1735787136379,0.75157428,199.35,199.24,15.15762326]
[1735787137101,0.75157428,199.35,199.25,23.776884]
[1735787138095,0.75157428,199.35,199.24,15.15762326]
[1735787141387,21.5655,199.34,199.2,12.5496]
[1735787141585,6.3201,199.32,199.16,12.5524]
[1735787141784,20.0,199.29,199.17,15.15762326]
[1735787141985,0.75157428,199.28,199.17,15.15762326]
[1735787142196,1.5655,199.27,199.17,15.15762326]
[1735787142398,0.75157428,199.26,199.17,15.15762326]
[1735787142795,0.75157428,199.26,199.16,15.15762326]
[1735787144308,0.75157428,199.26,199.17,15.15762326]
[1735787145326,0.75157428,199.26,199.16,15.15762326]
[1735787145519,6.3201,199.25,199.13,15.15762326]
[1735787145719,0.75157428,199.24,199.13,15.15762326]
[1735787148185,0.75157428,199.24,199.17,15.15762326]
[1735787148392,0.75157428,199.24,199.16,15.15762326]
[1735787148587,0.75157428,199.24,199.15,15.15762326]
[1735787148895,0.75157428,199.24,199.14,15.15762326]
[1735787149387,0.75157428,199.24,199.13,15.15762326]
[1735787149886,0.75157428,199.24,199.14,15.15762326]
[1735787150293,0.75157428,199.24,199.14,9.71348991]
[1735787151822,0.75157428,199.24,199.15,9.71348991]
[1735787152027,0.75157428,199.24,199.17,9.71348991]
[1735787152342,0.75157428,199.24,199.13,9.71348991]
[1735787155021,0.75157428,199.24,199.14,9.71348991]
[1735787157315,0.75157428,199.24,199.16,9.71348991]
[1735787158708,0.75157428,199.24,199.14,9.71348991]
[1735787158898,0.75157428,199.24,199.12,9.71348991]
[1735787159795,0.75157428,199.24,199.13,9.71348991]
[1735787160294,0.75157428,199.24,199.12,23.776884]
[1735787160295,0.75157428,199.24,199.16,9.71348991]
[1735787162403,0.75157428,199.24,199.15,9.71348991]
[1735787162824,0.75157428,199.24,199.16,9.71348991]
[1735787165740,0.75157428,199.24,199.14,9.71348991]
[1735787167856,0.75157428,199.24,199.15,9.71348991]
[1735787170764,0.75157428,199.24,199.12,9.71348991]
[1735787171127,20.0,199.22,199.12,9.71348991]
[1735787171347,0.75157428,199.21,199.12,9.71348991]
[1735787171740,0.75157428,199.21,199.11,9.71348991]
[1735787172047,1.6604,199.2,199.08,23.776884]
[1735787172228,0.75157428,199.19,199.11,9.71348991]
[1735787173550,0.75157428,199.19,199.13,9.71348991]
[1735787174131,1.6604,199.2,199.15,9.71348991]
[1735787174345,1.6604,199.2,199.12,23.776884]
[1735787174545,1.6604,199.2,199.14,9.71348991]
[1735787175651,1.6604,199.2,199.11,23.776884]
[1735787175856,1.6604,199.2,199.14,9.71348991]
[1735787177635,1.6604,199.2,199.13,9.71348991]
[1735787178345,1.6604,199.2,199.11,12.5558]
[1735787178540,0.75157428,199.24,199.14,9.71348991]
[1735787178742,0.75157428,199.24,199.15,9.71348991]
[1735787178948,0.75157428,199.24,199.16,9.71348991]
[1735787179145,6.3201,199.25,199.18,9.71348991]
[1735787179633,6.3201,199.25,199.19,9.71348991]
[1735787179830,1.6604,199.27,199.21,9.71348991]
[1735787180037,6.84207428,199.3,199.22,9.71348991]
[1735787180247,6.0905,199.3,199.22,9.71348991]
[1735787180560,0.75157428,199.29,199.21,9.71348991]
[1735787180740,0.75157428,199.29,199.22,23.776884]
[1735787181348,6.0905,199.3,199.22,23.776884]
[1735787181660,0.75157428,199.29,199.22,23.776884]
[1735787182152,0.75157428,199.29,199.2,9.71348991]
[1735787182357,0.75157428,199.29,199.19,42.26378991]
[1735787182555,0.75157428,199.29,199.2,23.776884]
[1735787182937,0.75157428,199.29,199.19,29.71348991]
[1735787183353,0.75157428,199.29,199.2,23.776884]
[1735787183555,6.0905,199.3,199.23,9.71348991]
[1735787185149,0.75157428,199.29,199.22,9.71348991]
[1735787185460,0.75157428,199.29,199.21,33.49037391]
[1735787186160,0.75157428,199.29,199.21,9.71348991]
[1735787186345,0.75157428,199.29,199.19,9.71348991]
[1735787186948,0.75157428,199.29,199.15,13.3061616]
[1735787187142,0.75157428,199.29,199.17,9.71348991]
[1735787187346,0.75157428,199.29,199.18,23.776884]
[1735787187547,0.75157428,199.29,199.18,9.71348991]
[1735787188646,0.75157428,199.29,199.18,23.776884]
[1735787189557,20.0,199.27,199.16,9.71348991]
[1735787189742,0.75157428,199.26,199.16,9.71348991]
[1735787189943,0.75157428,199.26,199.15,33.49037391]
[1735787190144,1.587,199.25,199.13,9.71348991]
[1735787190357,0.75157428,199.24,199.14,23.776884]
[1735787190562,0.75157428,199.24,199.13,9.71348991]
[1735787191767,0.75157428,199.24,199.14,9.71348991]
[1735787193165,0.75157428,199.24,199.15,9.71348991]
[1735787193753,0.75157428,199.24,199.16,9.71348991]
[1735787194540,0.75157428,199.24,199.17,23.776884]
[1735787194763,1.587,199.25,199.18,9.71348991]
[1735787196161,0.75157428,199.24,199.17,9.71348991]
[1735787196673,0.75157428,199.24,199.16,9.71348991]
[1735787196974,0.75157428,199.24,199.15,9.71348991]
[1735787199158,0.75157428,199.24,199.14,29.71348991]
[1735787202763,0.75157428,199.24,199.11,0.75293861]
[1735787202962,6.1659,199.23,199.12,9.71348991]
[1735787203158,0.75157428,199.22,199.12,9.71348991]
[1735787203463,20.0,199.2,199.09,9.71348991]
[1735787203652,0.75157428,199.19,199.09,9.71348991]
[1735787203851,0.75157428,199.19,199.09,23.776884]
[1735787204068,0.75157428,199.19,199.08,9.71348991]
[1735787204265,0.75157428,199.19,199.09,9.71348991]
[1735787204676,1.6548,199.18,199.09,9.71348991]
[1735787204876,0.75157428,199.17,199.09,9.71348991]
[1735787206167,0.75157428,199.17,199.1,9.71348991]
[1735787206366,1.6548,199.18,199.11,9.71348991]
[1735787206590,1.6548,199.18,199.13,9.71348991]
[1735787207074,0.75157428,199.22,199.13,9.71348991]
[1735787207672,0.75157428,199.22,199.14,9.71348991]
[1735787209666,7.8207,199.23,199.16,9.71348991]
[1735787210159,7.8207,199.23,199.17,9.71348991]
[1735787210760,1.6548,199.23,199.19,9.71348991]
[1735787210974,16.42668389,199.28,199.2,9.71348991]
[1735787211158,8.57227428,199.28,199.2,9.71348991]
[1735787211975,7.8207,199.28,199.2,9.71348991]
[1735787212363,0.75157428,199.27,199.2,9.71348991]
[1735787213065,7.8207,199.28,199.2,9.71348991]
[1735787213868,0.75157428,199.27,199.2,9.71348991]
[1735787214460,0.75157428,199.27,199.19,9.71348991]
[1735787216563,0.75157428,199.27,199.16,20.0]
[1735787216880,20.0,199.25,199.14,9.71348991]
[1735787217085,0.75157428,199.24,199.13,9.71348991]
[1735787220483,0.75157428,199.24,199.14,9.71348991]
[1735787220873,0.75157428,199.24,199.14,8.71348991]
[1735787223168,0.75157428,199.24,199.15,9.71348991]
[1735787224290,0.75157428,199.24,199.14,9.71348991]
[1735787225387,23.776884,199.21,199.04,20.0]
[1735787225583,0.75157428,199.2,199.07,9.71348991]
[1735787226690,0.75157428,199.21,199.07,9.71348991]
[1735787227085,0.75157428,199.21,199.08,9.71348991]
[1735787228794,20.0,199.19,199.08,9.71348991]
[1735787229089,1.6231,199.17,199.02,8.42786781]
[1735787229291,0.75157428,199.16,199.06,9.71348991]
[1735787231585,0.75157428,199.16,199.07,9.71348991]
[1735787231780,0.75157428,199.16,199.03,24.53025665]